Cogmind - Beta 15 @@@ ROGUE MODE // 2025.05.25 @ 21:37:09 // Winter2022/Polymind Player: Figgis Result: Destroyed by Autobeam Turret with Autobeam Performance ------------- Evolutions (0) 0 Regions Visited (2) 400 Robots Destroyed (8) 40 Value Destroyed (154) 154 Prototype IDs (0) 0 Alien Tech Used (0) 0 Bonus (730) 730 TOTAL SCORE: 1154 Bonus ------- Polymind Skill 730 Cogmind --------- Core Integrity 0/250 Matter 100/100 Energy 49/50 System Corruption 2% Temperature Cool (6) Movement Rolling (110) Location -10/Subcaves Parts ------- > --- POWER (1) -------- Subdweller Power Source > --- PROPULSION (1) --- Subdweller Monowheel > --- UTILITY (4) ------ Disposable Heat Sink Subdweller Optics > --- WEAPON (1) ------- (None) > --- INVENTORY (2) ---- Scrap Shield Fragment (49) Peak State ------------ > --- POWER ------------ Subdweller Power Source > --- PROPULSION ------- Subdweller Monowheel > --- UTILITY ---------- Disposable Heat Sink Subdweller Optics Scrap Shield > --- WEAPON ----------- Subdweller Machine Gun > --- INVENTORY -------- Scrap Shield Fragment [Rating: 14] Favorites ----------- Power Subdweller Power Source Engine Subdweller Power Source Propulsion Aluminum Leg Leg Aluminum Leg Wheel Subdweller Monowheel Utility Disposable Heat Sink Device Disposable Heat Sink Protection Scrap Shield Weapon Small Laser Energy Gun Small Laser Ballistic Gun Subdweller Machine Gun Build | -11 -10 -10 ------- Run | Yrd Mat Sub Slots Evolved . | . . . Power . | . . . Propulsion . | . . . Utility . | . . . Weapon . | . . . Parts Attached . | . . . Power . | . . . Engine . | . . . Core . | . . . Reactor . | . . . Propulsion . | . . . Treads . | . . . Leg . | . . . Wheel . | . . . Hover . | . . . Flight . | . . . Utility . | . . . Device . | . . . Storage . | . . . Processor . | . . . Hackware . | . . . Protection . | . . . Artifact . | . . . Weapon . | . . . Energy Gun . | . . . Energy Cannon . | . . . Ballistic Gun . | . . . Ballistic Cannon . | . . . Launcher . | . . . Special Weapon . | . . . Impact Weapon . | . . . Slashing Weapon . | . . . Piercing Weapon . | . . . Special Melee Weapon . | . . . Unidentified Prototypes . | . . . Parts Lost 2 | . . 2 Power . | . . . Propulsion . | . . . Utility 1 | . . 1 Weapon 1 | . . 1 Highest Loss Streak 1 | . . 1 To Critical Strikes . | . . . Average Backups . | . . . Power . | . . . Propulsion . | . . . Utility . | . . . Weapon . | . . . Tool/Special . | . . . Unused Backups . | . . . Power . | . . . Propulsion . | . . . Utility . | . . . Weapon . | . . . Tool/Special . | . . . Average Slot Usage (%) 61 | . 40 77 Engine 12 | . 8 15 Leg 14 | . 16 12 Wheel 5 | . . 9 Device 17 | . 8 24 Protection 2 | . . 3 Energy Gun 7 | . 8 6 Ballistic Gun 2 | . . 5 Peak Build Rating 14 | . 5 14 Average Rating 5 | . 2 8 On Entrance 1 | . . 5 Naked Turns 155 | . 152 3 Heaviest Build 30 | . 7 30 Greatest Support 20 | 3 20 20 Greatest Overweight (x) 1 | . . 1 Average Overweight (x) . | . . . Largest Inventory Capacity 2 | . 1 2 Average Capacity 1 | . . 1 Most Carried 1 | . . 1 Average Carried . | . . . Final Capacity 2 | . 1 2 Final Carried 1 | . . 1 Class Distribution -------------------- 39% | Subdweller 35% | Grunt 25% | Cogmind Dominant Class ---------------- Cogmind | -10/Materials Subdweller | -10/Subcaves Resources | -11 -10 -10 ----------- Run | Yrd Mat Sub Matter Collected 52 | . . 52 Remotely . | . . . Salvage Created 258 | . 122 136 Parts 13 | . 4 9 Haulers Intercepted . | . . . Recyclers Shooed . | . . . Parts Field Recycled . | . . . Retrieved Matter . | . . . Parts Self-Destructed 13 | . . 13 Prevented . | . . . Kills | -11 -10 -10 ------- Run | Yrd Mat Sub Combat Hostiles Destroyed 5 | . 1 4 Guns 5 | . 1 4 Classes Destroyed 5 | . 2 3 Worker 2 | . 2 . Turret 1 | . . 1 Swarmer 3 | . . 3 Grunt 1 | . 1 . Sentry 1 | . . 1 Best Kill Streak 4 | . 2 4 Combat Bots Only 4 | . 1 4 Max Kills in Single Turn 1 | . 1 1 Gunslinging . | . . . Exploded . | . . . Melee . | . . . Uniques/NPCs Destroyed . | . . . Combat | -11 -10 -10 -------- Run | Yrd Mat Sub Hostile Shots Fired 130 | . 8 122 Missed 39 | . 3 36 Hits 91 | . 5 86 Projectile 91 | . 5 86 AOE 1 | . . 1 Damage Taken 729 | . 80 649 Core 253 | . 17 236 Absorbed by Shields . | . . . Core Remaining (%) 100 | 100 . . Volleys Fired 42 | . 17 25 Largest 1 | . 1 1 Hottest 40 | . 40 30 Shots Fired 41 | . 17 24 Gun 41 | . 17 24 Cannon . | . . . Launcher . | . . . Special . | . . . Kinetic 24 | . . 24 Thermal 17 | . 17 . Explosive . | . . . Electromagnetic . | . . . Robot Hit Streak 5 | . 5 3 Robot Miss Streak 3 | . 1 3 Penetration Max . | . . . Secondary Targets . | . . . Shots Hit Robots 23 | . 11 12 Core Hits 11 | . 5 6 Critical Kills . | . . . Critical Parts Destroyed 1 | . . 1 Critical Strikes 1 | . . 1 Destroy 1 | . . 1 Melee Attacks . | . . . Impact . | . . . Slashing . | . . . Piercing . | . . . Sneak Attacks . | . . . Combat Hostiles . | . . . Follow-up Attacks . | . . . Damage Inflicted 421 | . 118 303 Guns 421 | . 118 303 Cannons . | . . . Explosions . | . . . Melee . | . . . Ramming . | . . . Kinetic 303 | . . 303 Thermal 118 | . 118 . Explosive . | . . . Electromagnetic . | . . . Impact . | . . . Slashing . | . . . Piercing . | . . . Highest Corruption 2 | . 2 2 Average Corruption 2 | . 2 2 Corruption Purged . | . . . Corruption Blocked . | . . . Effects 6 | . 1 5 Message Errors 1 | . . 1 Matter Fused 1 | . . 1 Heat Flow Errors 1 | . . 1 Energy Discharges 1 | . 1 . Data Loss (major) 1 | . . 1 Weapon Failures 1 | . . 1 Overload Shots . | . . . Overflow Damage . | . . . Projectiles . | . . . Explosions . | . . . Melee . | . . . Knockbacks . | . . . Impact . | . . . Kinetic . | . . . Secondary . | . . . Self-Inflicted Damage . | . . . Shots . | . . . Rammed . | . . . Targets Rammed . | . . . Kicked . | . . . Crushed . | . . . Highest Temperature 100 | . 45 100 Average Temperature 24 | . 19 46 Received Heat Transfer 210 | . 45 165 Siege Activations . | . . . Martial Activations . | . . . Shielding Activations . | . . . Robots Disrupted . | . . . Combat Hostiles . | . . . Robots Corrupted . | . . . Combat Hostiles . | . . . Parts Fried . | . . . Impact Corruptions . | . . . Robots Melted . | . . . Combat Hostiles . | . . . Parts Melted . | . . . Heat Transferred 275 | . 275 . Parts Sabotaged . | . . . Parts Stolen . | . . . Parts Stripped . | . . . Power Chain Reactions . | . . . Alert | -11 -10 -10 ------- Run | Yrd Mat Sub Maximum Alert Level . | . . . Low Security (%) 100 | 100 100 . Level 1 . | . . . Level 2 . | . . . Level 3 . | . . . Level 4 . | . . . Level 5 . | . . . High Security . | . . . Max Security . | . . . Peak Influence 30 | . 30 . Initial . | . . . Average 5 | . 6 . Influence Increases 423 | . 68 355 Destroy 0b10 Robot/C 120 | . 20 100 Destroy 0b10 Robot/NC 10 | . 10 . Destroy Leader 10 | . 10 . Successful Hack 28 | . 28 . Lose Combat Pursuer 255 | . . 255 Influence Decreases 178 | . 68 110 Time Decay 158 | . 68 90 Lost Part 20 | . . 20 Squads Dispatched . | . . . Investigation . | . . . Extermination . | . . . Reinforcement . | . . . Assault . | . . . Garrison . | . . . Intercept . | . . . Searches Triggered . | . . . Construction Impeded . | . . . Haulers Reinforced . | . . . Active Scanning Responses . | . . . Cargo Convoy Interrupts . | . . . Stealth | -11 -10 -10 --------- Run | Yrd Mat Sub Distress Signals 1 | . 1 . Communications Jammed . | . . . Distress Signals . | . . . Times Spotted 23 | . 4 19 Peak Tracking Total 5 | . 2 5 Tactical Retreats 6 | . . 6 Traps | -11 -10 -10 ------- Run | Yrd Mat Sub Traps Triggered 1 | . 1 . Indirectly . | . . . Trap Hack Attempts . | . . . Triggered . | . . . Disarmed . | . . . Reprogrammed . | . . . Reused . | . . . Traps Extracted . | . . . Installed . | . . . Triggered . | . . . Machines | -11 -10 -10 ---------- Run | Yrd Mat Sub Machines Disabled 1 | . . 1 Max in Single Turn 1 | . . 1 Machines Repaired . | . . . Machines Dismantled . | . . . Machines Sabotaged . | . . . Overloaded Fab Kills . | . . . Hacking | -11 -10 -10 --------- Run | Yrd Mat Sub Machines Accessed 3 | . 3 . Terminals 3 | . 3 . Fabricators . | . . . Repair Stations . | . . . Recycling Units . | . . . Scanalyzers . | . . . Garrison Access . | . . . Total Hacks 10 | . 10 . Successful 4 | . 4 . Failed 6 | . 6 . Catastrophic 1 | . 1 . Database Lockouts . | . . . Manual 9 | . 9 . Terminals 10 | . 10 . Fabricators . | . . . Repair Stations . | . . . Recycling Units . | . . . Scanalyzers . | . . . Garrison Access . | . . . Terminal Hacks 4 | . 4 . Robot Analysis 3 | . 3 . Branch Access Points 1 | . 1 . Fabricator Hacks . | . . . Repair Station Hacks . | . . . Recycling Unit Hacks . | . . . Scanalyzer . | . . . Garrison Access Hacks . | . . . Unauthorized Hacks . | . . . Terminals . | . . . Fabricators . | . . . Repair Stations . | . . . Recycling Units . | . . . Scanalyzers . | . . . Garrison Access . | . . . Data Cores Recovered . | . . . Used . | . . . Hacking Detections 3 | . 3 . Full Trace Events . | . . . Feedback Events . | . . . Feedback Blocked . | . . . Robot Schematics Acquired . | . . . Robots Built . | . . . Authchips . | . . . Time . | . . . Total Robot Build Rating . | . . . Part Schematics Acquired . | . . . Parts Built . | . . . Authchips . | . . . Time . | . . . Total Part Build Rating . | . . . Parts Repaired . | . . . Time . | . . . Parts Recycled . | . . . Recycled Matter . | . . . Retrieved Matter . | . . . Retrieved Components . | . . . Parts Scanalyzed . | . . . Part Schematics Acquired . | . . . Parts Damaged . | . . . Bothacking | -11 -10 -10 ------------ Run | Yrd Mat Sub Used RIF Installer . | . . . Robots Hacked 1 | . 1 . Non-combat . | . . . Combat 1 | . 1 . Robot Hacks Applied 1 | . 1 . find_shortcuts 1 | . 1 . Relay Couplers Released . | . . . Fabnet Peak Effective % . | . . . Robots Rewired . | . . . Allies Hacked . | . . . Hacks Repelled . | . . . Allies | -11 -10 -10 -------- Run | Yrd Mat Sub Total Allies . | . . . Largest Group . | . . . Highest-Rated Group . | . . . Highest-Rated Ally . | . . . Total Orders . | . . . Ally Attacks . | . . . Total Damage . | . . . Kills . | . . . Allies Corrupted . | . . . Allies Melted . | . . . Intel | -11 -10 -10 ------- Run | Yrd Mat Sub Active Infowar (turns) 181 | . . 181 Optics 181 | . . 181 Robot Analysis Total 4 | . 3 1 Derelict Logs Recovered . | . . . Drone Launches . | . . . Drone Recoveries . | . . . Exploration | -11 -10 -10 ------------- Run | Yrd Mat Sub Turns Passed 618 | 9 264 345 Spaces Moved 566 | 18 293 255 Core 249 | 18 227 4 Treads . | . . . Legs 151 | . 66 85 Wheels 166 | . . 166 Hover . | . . . Flight . | . . . Fastest Speed 50 | 50 50 50 Average Speed 87 | 50 65 114 Slowest Speed 120 | 50 120 120 Overloaded Moves . | . . . Propulsion Burnouts . | . . . Robots Hopped . | . . . Potential Cave-ins . | . . . Cave-ins Triggered . | . . . Exploration Rate (%) 21 | 3 43 17 Regions Visited 2 Branch Regions 1 Pre-discovered Areas 1 | . . 1 Known Exits Taken . | . . . Unknown Exits Taken 2 | 1 1 . Scrap Searched . | . . . Spaces Dug . | . . . Terrain Destroyed . | . . . Melee . | . . . Projectile . | . . . AOE . | . . . Terrain Rammed . | . . . Walls Destroyed . | . . . Machines Disabled . | . . . Actions | -11 -10 -10 --------- Run | Yrd Mat Sub Total 647 | 17 347 283 Wait 41 | . 38 3 Move 564 | 17 292 255 Hop . | . . . Pick Up . | . . . Fast Attach . | . . . Attach . | . . . Detach . | . . . Swap . | . . . Drop . | . . . Fire 42 | . 17 25 Melee . | . . . Ram . | . . . Kick . | . . . Crush . | . . . Escape Stasis . | . . . Rewire . | . . . Trap . | . . . Miscellaneous . | . . . Route ------- -11/Scrapyard -10/Materials (discovered 4 exits: [*Mat] / *Min x2 / [*Sub]) -10/Subcaves (discovered 1 exit: [*Rec]) History --------- Turn | Location | Event 4 | -11/Scrapyard | Discovered new exit (range 13) 10 | -11/Scrapyard | Entered Materials 22 | -10/Materials | Identified exit to Mines 80 | -10/Materials | Discovered new exit (range 4) 242 | -10/Materials | Discovered new exit (range 9) 274 | -10/Materials | Entered Subcaves 275 | -10/Subcaves | Approached by a straggling Scientist 317 | -10/Subcaves | Learned location of Zion (-7) 317 | -10/Subcaves | Met a Zionite searching for "candidates" 319 | -10/Subcaves | Shifting Twisted Machinery released Flamer 472 | -10/Subcaves | Core integrity fell below 50% 496 | -10/Subcaves | Discovered new exit (range 10) 602 | -10/Subcaves | Core integrity fell below 20% 619 | -10/Subcaves | Destroyed by Autobeam Turret with Autobeam Last Messages --------------- 00490_ Acquired 11 matter. 00491_ Hvy. Assault Rifle fries itself beyond repair. 00492_ Acquired 15 matter. 00493_ Acquired 19 matter. 00494_ X|R IDS9,5E 74#|OGTB4FSRLY 00494_ Flight Unit fries itself beyond repair. 00496_ EXIT=FOUND 00497_ Lgt. Ion Engine fries itself beyond repair. 00500_ Lgt. Assault Rifle fries itself beyond repair. 00500_ Flight Unit fries itself beyond repair. 00510_ Machine disabled. 00512_ Autobeam Turret destroyed. 00518_ Sub. Machine Gun destroyed. 00522_ Acquired 7 matter. 00523_ System corrupted: Heat flow error (+128). 00526_ Autobeam fries itself beyond repair. 00537_ Subatomizers dissect the Sub. Shrapnel Launcher. 00561_ Sub. Optics shoots sparks and powers down. 00576_ Subatomizers dissect the Sub. Shrapnel Launcher. 00591_ Subatomizers dissect the Sub. Shrapnel Launcher, destroying it. Map ----- +----------------------------------------------------+ | ?????????????????????????????????????????????????? | | ?????????????????????????????????????????????????? | | ?????????????????????????????????????????????????? | | ?????????????????????????????????????????????????? | | ?????????????????????????????????????????????????? | | ?????????????????????????????????????????????????? | | ?????????????????????????????????????????????????? | | ?????????????????????????????????????????????????? | | ?????????????????????????????????????????????????? | | ?????????????????????????????????????????????????? | | ?????????????????????????????????????????????????? | | ?????????????????????????????????????????????????? | | ?????????????????????????????????????????????????? | | ?????????????????????????????????????????????????? | | ?????????????????????????????????????????????????? | | ?????????????????????????????????????????????????? | | ?????????????????????????????????????????????????? | | ??????????????????????????##?????????????????????? | | ?????????????????????#####<#####?????????????????? | | ?????????????????????#"""" """"#?????????????????? | | ?????????????????????#" " " #?????????????????? | | ?????????????????????#" t "#?????????????????? | | ?????????????????????# % #?????????????????? | | ??????????????????#### #?????????????????? | | ?????????????????## #?? "#?????????????????? | | ????????????##??## ##?##R #???????####?????????? | | ????????????# ### ### #####?? #????????? | | ???????????## % ## ?????? | | ???????????# ?????? | | ???????????## # % ?????? | | ???????????# ### ?????? | | ???????????# ###### ## #??????? | | ???????????## ##?## #???##???????? | | ????????????# #??# ##????????????? | | ????????????## #??# #### #?????????????? | | ?????????????## ##?# ##??? ##?????????????? | | ??????????????# #### #????? #??????????????? | | ??????????????# ### ##???? #?????????????? | | ?????????????## ## #????? #????????????? | | ?????????????# ## #?????? #?????####??? | | ?????????????## ## ### #?????? #????## ##?? | | ??????????????#### ## #?????????#????# ### | | ????????????????## ### ####????????##### # | | ????????????##### ### ##??????## ## # | | ???????????## ## ##???### # | | ???????????# #####" # | | ???????????# ## """" | | ???????????## ###### ! | | ????????????# #????# &% | | ???????????# #????## ###& ## | +----------------------------------------------------+ Best States ------------- Heat Dissipation 25 Coolant Potential 50 Energy Generation 20 Energy Capacity 200 Matter Stores 100 Matter Capacity 100 Sight Range 19 Terrain Scan Density 10 Armor Coverage 800 Evasion (%) 55 Item Schematics ----------------- None Robot Schematics ------------------ None Fabricated ------------ Nothing Repaired ---------- Nothing Alien Tech Used ----------------- None Achievements -------------- None Challenges ------------ None Polymind | -11 -10 -10 ---------- Run | Yrd Mat Sub Hosts 2 | . 1 1 Combat Hostiles 2 | . 1 1 Allies . | . . . Unique Host Classes 2 | . 1 1 Average Host Suspicion 73 | . 95 66 Unsuspicious Activity 23 | . 7 16 Returns to Shadow . | . . . Fuzzy Dispatches . | . . . Protomatter Created 27 | . . 27 Used 48 | . 15 33 Decayed 27 | . . 27 Highest Spend 33 | . 15 33 Top 5 Hosts by Kills: E9-SK6(R) (-10/Subcaves: 4) G-34 Mercenary (-10/Materials: 1) Game ------ Seed RiotFrostProcessor Manual? 0 Play Time 00:07:07 Cumulative 151.0 hours Start 2025.05.25 @ 21:32:15 End 2025.05.25 @ 21:37:09 Sessions 1 Manual Loads 0 Difficulty Rogue Special Mode Winter2022/Polymind Game No. 222 Rogue 219 Adventurer 3 Explorer 0 Win Type - Total 1 Types 1/0/0/0/0/0/0/0/0/0 Lore% 35 Gallery% 55 Achievement% 44 Wizard Run 0 Options --------- Layout 0 ASCII 0 Keyboard 0 Movement Mouse Keybinds 0 Fullscreen 2 Font 18/SmallcapsGlow Map View 76x50 Zoom Use 0% Tactical HUD 1 Map Filters NONE Filters NONE Steam 1 RUN: 54512813-020f-4433-af85-444c3c290c4a